[Event "Live Chess"]
[Site "Chess.com"]
[Date "2023.05.21"]
[Round "-"]
[White "JoeyCage"]
[Black "ameetghasi100"]
[Result "0-1"]
[WhiteElo "2292"]
[BlackElo "2601"]
[TimeControl "300"]
[EndTime "4:57:42 PDT"]
[Termination "ameetghasi100 won on time"]

1. e4 {[%clk 0:04:58]} 1... c5 {[%clk 0:04:59.9]} 2. Nf3 {[%clk 0:04:53.7]} 2...
Nc6 {[%clk 0:04:59.2]} 3. d4 {[%clk 0:04:52.7]} 3... cxd4 {[%clk 0:04:56]} 4.
Nxd4 {[%clk 0:04:52]} 4... Qb6 {[%clk 0:04:55.7]} 5. Nb3 {[%clk 0:04:50.4]} 5...
e6 {[%clk 0:04:54.3]} 6. Nc3 {[%clk 0:04:45.7]} 6... a6 {[%clk 0:04:52.7]} 7.
Be3 {[%clk 0:04:43.6]} 7... Qc7 {[%clk 0:04:52.2]} 8. Be2 {[%clk 0:04:40]} 8...
b5 {[%clk 0:04:51.4]} 9. O-O {[%clk 0:04:37.7]} 9... Bb7 {[%clk 0:04:50.9]} 10.
f4 {[%clk 0:04:36.4]} 10... Nf6 {[%clk 0:04:49.4]} 11. Bf3 {[%clk 0:04:35.1]}
11... h5 {[%clk 0:04:46.8]} 12. h3 {[%clk 0:04:32]} 12... b4 {[%clk 0:04:38.1]}
13. Ne2 {[%clk 0:04:30.1]} 13... Ne7 {[%clk 0:04:37.6]} 14. e5 {[%clk
0:04:21.2]} 14... Nfd5 {[%clk 0:04:29.9]} 15. Bd2 {[%clk 0:04:19.5]} 15... Nf5
{[%clk 0:04:25]} 16. Qc1 {[%clk 0:04:11.6]} 16... a5 {[%clk 0:04:22.3]} 17. c4
{[%clk 0:04:02.6]} 17... bxc3 {[%clk 0:04:19.1]} 18. Nxc3 {[%clk 0:03:59.2]}
18... Nb4 {[%clk 0:04:15.9]} 19. Ne4 {[%clk 0:03:35]} 19... Qb6+ {[%clk
0:04:13.5]} 20. Kh2 {[%clk 0:03:32.4]} 20... a4 {[%clk 0:04:11.5]} 21. Bxb4
{[%clk 0:03:27.2]} 21... Bxb4 {[%clk 0:04:08.1]} 22. Nbd2 {[%clk 0:03:25.7]}
22... Rc8 {[%clk 0:04:05.7]} 23. Nc4 {[%clk 0:03:18.6]} 23... Qa6 {[%clk
0:03:54.4]} 24. b3 {[%clk 0:03:16.4]} 24... O-O {[%clk 0:03:43.5]} 25. Rd1
{[%clk 0:03:05.8]} 25... Bd5 {[%clk 0:03:31.5]} 26. Ng5 {[%clk 0:02:56.6]} 26...
Bxc4 {[%clk 0:03:25.4]} 27. bxc4 {[%clk 0:02:54.4]} 27... Rxc4 {[%clk
0:03:25.3]} 28. Qb2 {[%clk 0:02:47.7]} 28... Rxf4 {[%clk 0:03:24.1]} 29. Bxh5
{[%clk 0:02:42.3]} 29... Qa5 {[%clk 0:03:17.3]} 30. Rac1 {[%clk 0:02:35.3]}
30... Be7 {[%clk 0:03:09.9]} 31. Nf3 {[%clk 0:02:31.1]} 31... a3 {[%clk
0:03:03.2]} 32. Qd2 {[%clk 0:02:28.5]} 32... Qxd2 {[%clk 0:03:00.3]} 33. Rxd2
{[%clk 0:02:27.4]} 33... d6 {[%clk 0:02:57.9]} 34. Bg4 {[%clk 0:02:02.4]} 34...
dxe5 {[%clk 0:02:54]} 35. Nxe5 {[%clk 0:01:58.2]} 35... Bg5 {[%clk 0:02:51.2]}
36. Rcc2 {[%clk 0:01:41.4]} 36... Ne3 {[%clk 0:02:24.4]} 37. Nf3 {[%clk
0:01:25]} 37... Nxg4+ {[%clk 0:02:17.9]} 38. hxg4 {[%clk 0:01:22.2]} 38... Rxf3
{[%clk 0:02:17.8]} 39. gxf3 {[%clk 0:01:19.3]} 39... Bxd2 {[%clk 0:02:17.7]} 40.
Rxd2 {[%clk 0:01:18.1]} 40... Rb8 {[%clk 0:02:17.4]} 41. Kg3 {[%clk 0:01:13.4]}
41... Rb2 {[%clk 0:02:17.3]} 42. Rd8+ {[%clk 0:01:10.9]} 42... Kh7 {[%clk
0:02:15.6]} 43. Rd7 {[%clk 0:01:08.6]} 43... Kg6 {[%clk 0:02:14.7]} 44. Ra7
{[%clk 0:01:06.8]} 44... Rxa2 {[%clk 0:02:13.7]} 45. Ra5 {[%clk 0:01:05.3]}
45... Ra1 {[%clk 0:02:12.5]} 46. f4 {[%clk 0:01:03.9]} 46... a2 {[%clk
0:02:10.6]} 47. Kg2 {[%clk 0:01:01.9]} 47... Kf6 {[%clk 0:02:09.6]} 48. Ra3
{[%clk 0:00:57.6]} 48... Ke7 {[%clk 0:02:08.1]} 49. Ra7+ {[%clk 0:00:55.5]}
49... Kd6 {[%clk 0:02:07.3]} 50. Ra5 {[%clk 0:00:52.6]} 50... Kc6 {[%clk
0:02:06.5]} 51. g5 {[%clk 0:00:46.6]} 51... Kb6 {[%clk 0:02:02]} 52. Ra8 {[%clk
0:00:44.4]} 52... Kc5 {[%clk 0:02:01.5]} 53. Ra4 {[%clk 0:00:40.6]} 53... Kb5
{[%clk 0:02:00.3]} 54. Ra8 {[%clk 0:00:39.2]} 54... Kc4 {[%clk 0:01:59.7]} 55.
Kh2 {[%clk 0:00:28.8]} 55... Kd3 {[%clk 0:01:57.6]} 56. Kg2 {[%clk 0:00:25]}
56... Ke4 {[%clk 0:01:56.1]} 57. Ra4+ {[%clk 0:00:23.4]} 57... Kf5 {[%clk
0:01:55.4]} 58. Kh2 {[%clk 0:00:21.9]} 58... Kg4 {[%clk 0:01:54.6]} 59. Kg2
{[%clk 0:00:20.9]} 59... Re1 {[%clk 0:01:35]} 60. Rxa2 {[%clk 0:00:19.3]} 60...
Re4 {[%clk 0:01:34.5]} 61. g6 {[%clk 0:00:14.8]} 61... fxg6 {[%clk 0:01:31.7]}
62. Ra7 {[%clk 0:00:11.4]} 62... Rxf4 {[%clk 0:01:30.6]} 63. Rxg7 {[%clk
0:00:11.3]} 63... g5 {[%clk 0:01:30.1]} 64. Re7 {[%clk 0:00:10.1]} 64... Re4
{[%clk 0:01:29.6]} 65. Rf7 {[%clk 0:00:08.6]} 65... Ra4 {[%clk 0:01:28.2]} 66.
Kf2 {[%clk 0:00:07.6]} 66... Ra3 {[%clk 0:01:26.9]} 67. Rf6 {[%clk 0:00:05.7]}
67... Ra2+ {[%clk 0:01:25.5]} 68. Ke3 {[%clk 0:00:04.9]} 68... Ra6 {[%clk
0:01:24.5]} 69. Ke4 {[%clk 0:00:01.9]} 69... Kg3 {[%clk 0:01:23.2]} 70. Rg6
{[%clk 0:00:00.7]} 70... g4 {[%clk 0:01:22.1]} 0-1

[Event "Live Chess"]
[Site "Chess.com"]
[Date "2023.05.21"]
[Round "-"]
[White "EdenHazard8"]
[Black "mattihelenius2"]
[Result "1-0"]
[WhiteElo "1922"]
[BlackElo "491"]
[TimeControl "300"]
[EndTime "4:57:58 PDT"]
[Termination "EdenHazard8 won by resignation"]

1. e4 {[%clk 0:04:57.9]} 1... e5 {[%clk 0:04:59]} 2. Qh5 {[%clk 0:04:57.4]} 2...
Qf6 {[%clk 0:04:57.2]} 3. Bc4 {[%clk 0:04:56.1]} 3... d5 {[%clk 0:04:52.5]} 4.
Bxd5 {[%clk 0:04:54.9]} 4... Nc6 {[%clk 0:04:49.6]} 5. Nf3 {[%clk 0:04:51.8]}
5... Be6 {[%clk 0:04:43.5]} 6. Bxc6+ {[%clk 0:04:50.3]} 6... bxc6 {[%clk
0:04:42]} 7. Qxe5 {[%clk 0:04:50.2]} 7... Qxe5 {[%clk 0:04:40.7]} 8. Nxe5 {[%clk
0:04:50.1]} 8... Nf6 {[%clk 0:04:39]} 9. d3 {[%clk 0:04:48.6]} 9... Bb4+ {[%clk
0:04:34.7]} 10. c3 {[%clk 0:04:47.3]} 10... Bd6 {[%clk 0:04:32.2]} 11. Nxc6
{[%clk 0:04:45.9]} 11... Ng4 {[%clk 0:04:24.8]} 12. h3 {[%clk 0:04:43]} 12...
Ne5 {[%clk 0:04:13]} 13. Nxe5 {[%clk 0:04:41.1]} 13... Bxe5 {[%clk 0:04:12.3]}
14. f4 {[%clk 0:04:41]} 14... Bxf4 {[%clk 0:04:10.8]} 15. Bxf4 {[%clk
0:04:39.6]} 15... Rd8 {[%clk 0:04:06.3]} 16. Bxc7 {[%clk 0:04:38.3]} 16... Rd7
{[%clk 0:04:04.6]} 17. Bf4 {[%clk 0:04:37.2]} 17... O-O {[%clk 0:04:02.3]} 18.
d4 {[%clk 0:04:37.1]} 18... h6 {[%clk 0:03:54.8]} 19. Nd2 {[%clk 0:04:37]} 19...
a5 {[%clk 0:03:42.1]} 20. O-O {[%clk 0:04:35.8]} 20... Rb7 {[%clk 0:03:27.5]}
21. d5 {[%clk 0:04:31.8]} 21... Bd7 {[%clk 0:03:22.8]} 22. Nc4 {[%clk
0:04:29.3]} 22... Bb5 {[%clk 0:03:12.2]} 23. Nd6 {[%clk 0:04:25.5]} 23... Rd7
{[%clk 0:03:03.7]} 24. Nxb5 {[%clk 0:04:22.8]} 1-0

[Event "Live Chess"]
[Site "Chess.com"]
[Date "2023.05.21"]
[Round "-"]
[White "gmnorfolk"]
[Black "friarnator"]
[Result "0-1"]
[WhiteElo "2117"]
[BlackElo "2020"]
[TimeControl "300"]
[EndTime "4:58:11 PDT"]
[Termination "friarnator won by resignation"]

1. d4 {[%clk 0:04:58.3]} 1... Nf6 {[%clk 0:04:58.6]} 2. c4 {[%clk 0:04:56.9]}
2... e6 {[%clk 0:04:58.1]} 3. Nc3 {[%clk 0:04:56.3]} 3... Bb4 {[%clk 0:04:57.5]}
4. e3 {[%clk 0:04:55.5]} 4... O-O {[%clk 0:04:55.5]} 5. Ne2 {[%clk 0:04:54]}
5... d5 {[%clk 0:04:54.8]} 6. a3 {[%clk 0:04:52.2]} 6... Be7 {[%clk 0:04:51.8]}
7. cxd5 {[%clk 0:04:50.2]} 7... exd5 {[%clk 0:04:50.6]} 8. Ng3 {[%clk
0:04:48.8]} 8... c6 {[%clk 0:04:49.9]} 9. Bd3 {[%clk 0:04:47.9]} 9... a5 {[%clk
0:04:44.3]} 10. O-O {[%clk 0:04:45.2]} 10... Be6 {[%clk 0:04:38.5]} 11. Bd2
{[%clk 0:04:44.1]} 11... Re8 {[%clk 0:04:37.1]} 12. Rc1 {[%clk 0:04:43]} 12...
Nbd7 {[%clk 0:04:35.8]} 13. f3 {[%clk 0:04:41.2]} 13... Nf8 {[%clk 0:04:34.7]}
14. e4 {[%clk 0:04:40.5]} 14... dxe4 {[%clk 0:04:32.9]} 15. fxe4 {[%clk
0:04:39.7]} 15... Qxd4+ {[%clk 0:04:32]} 0-1

[Event "Live Chess"]
[Site "Chess.com"]
[Date "2023.05.21"]
[Round "-"]
[White "Biranidun"]
[Black "GEMdzq"]
[Result "1-0"]
[WhiteElo "2517"]
[BlackElo "2285"]
[TimeControl "300"]
[EndTime "4:58:23 PDT"]
[Termination "Biranidun won by resignation"]

1. e4 {[%clk 0:04:58.6]} 1... d6 {[%clk 0:04:59.2]} 2. d4 {[%clk 0:04:57.4]}
2... Nf6 {[%clk 0:04:58.7]} 3. Nc3 {[%clk 0:04:56.6]} 3... g6 {[%clk 0:04:58.2]}
4. f4 {[%clk 0:04:55.8]} 4... Bg7 {[%clk 0:04:57.8]} 5. Bd3 {[%clk 0:04:55.1]}
5... O-O {[%clk 0:04:56.5]} 6. Nf3 {[%clk 0:04:54.3]} 6... Na6 {[%clk 0:04:56]}
7. Be3 {[%clk 0:04:48.7]} 7... Nd7 {[%clk 0:04:46.5]} 8. h4 {[%clk 0:04:38.1]}
8... c5 {[%clk 0:04:35]} 9. d5 {[%clk 0:04:36]} 9... Nf6 {[%clk 0:04:26]} 10.
Qe2 {[%clk 0:04:24.9]} 10... Nc7 {[%clk 0:04:20.2]} 11. a4 {[%clk 0:04:22.1]}
11... e6 {[%clk 0:04:18]} 12. dxe6 {[%clk 0:04:20.3]} 12... Bxe6 {[%clk
0:04:11.2]} 13. f5 {[%clk 0:04:19.2]} 13... Bd7 {[%clk 0:04:07.5]} 14. Bf4
{[%clk 0:04:11.3]} 14... Bc6 {[%clk 0:04:03.5]} 15. O-O-O {[%clk 0:04:09.6]}
15... Nh5 {[%clk 0:03:36.7]} 16. Bg5 {[%clk 0:04:06.5]} 16... Qe8 {[%clk
0:03:28.8]} 17. Qd2 {[%clk 0:04:03.4]} 17... Ng3 {[%clk 0:03:18.5]} 18. Rh3
{[%clk 0:04:00.6]} 18... Nxe4 {[%clk 0:03:14.3]} 19. Bxe4 {[%clk 0:03:56.4]}
19... Bxe4 {[%clk 0:03:14.2]} 20. f6 {[%clk 0:03:55]} 20... Bh8 {[%clk
0:03:04.1]} 21. Qxd6 {[%clk 0:03:53.9]} 21... Bf5 {[%clk 0:02:51.3]} 22. Rhh1
{[%clk 0:03:49.7]} 22... Qc6 {[%clk 0:02:30.8]} 23. Qxc6 {[%clk 0:03:47.5]}
23... bxc6 {[%clk 0:02:30.7]} 24. Ne5 {[%clk 0:03:45.3]} 24... h6 {[%clk
0:02:19.5]} 25. Nxc6 {[%clk 0:03:43.1]} 25... Rfe8 {[%clk 0:02:10.8]} 26. Bf4
{[%clk 0:03:30.4]} 26... Ne6 {[%clk 0:02:03.9]} 27. Be5 {[%clk 0:03:27.9]} 27...
Nd4 {[%clk 0:02:00]} 28. Nxd4 {[%clk 0:03:10.7]} 28... Rxe5 {[%clk 0:01:58.3]}
29. Nc6 {[%clk 0:03:08.8]} 29... Re6 {[%clk 0:01:42.5]} 30. Ne7+ {[%clk
0:03:08]} 30... Kf8 {[%clk 0:01:35.9]} 31. Nxf5 {[%clk 0:03:07]} 31... gxf5
{[%clk 0:01:35]} 32. Rhf1 {[%clk 0:03:03.6]} 32... Bxf6 {[%clk 0:01:31.6]} 33.
Rxf5 {[%clk 0:02:56.4]} 33... Bxh4 {[%clk 0:01:27.9]} 34. Rxc5 {[%clk
0:02:48.7]} 34... Bg5+ {[%clk 0:01:24.2]} 35. Kb1 {[%clk 0:02:47.8]} 35... Rb8
{[%clk 0:01:23.3]} 36. Rd7 {[%clk 0:02:44.2]} 36... Re1+ {[%clk 0:01:10.6]} 37.
Ka2 {[%clk 0:02:42.8]} 37... Rc1 {[%clk 0:01:09.6]} 38. Ne4 {[%clk 0:02:39.7]}
38... Bf4 {[%clk 0:00:56.1]} 39. Rf5 {[%clk 0:02:36.4]} 39... Rxc2 {[%clk
0:00:49.8]} 40. Rfxf7+ {[%clk 0:02:35.3]} 1-0

[Event "Live Chess"]
[Site "Chess.com"]
[Date "2023.05.21"]
[Round "-"]
[White "GMHarry-youtube"]
[Black "fazzik"]
[Result "1-0"]
[WhiteElo "2027"]
[BlackElo "612"]
[TimeControl "300"]
[EndTime "4:58:35 PDT"]
[Termination "GMHarry-youtube won by resignation"]

1. e4 {[%clk 0:04:59.4]} 1... e6 {[%clk 0:04:57]} 2. d3 {[%clk 0:04:58.1]} 2...
d5 {[%clk 0:04:53.3]} 3. e5 {[%clk 0:04:56.7]} 3... f6 {[%clk 0:04:49.6]} 4. d4
{[%clk 0:04:55.5]} 4... Be7 {[%clk 0:04:47.7]} 5. Nf3 {[%clk 0:04:52.2]} 5...
Nc6 {[%clk 0:04:46.1]} 6. c3 {[%clk 0:04:51]} 6... b6 {[%clk 0:04:23]} 7. Bb5
{[%clk 0:04:48.1]} 7... Bb7 {[%clk 0:04:21.6]} 8. Qa4 {[%clk 0:04:47.2]} 8...
Qd7 {[%clk 0:04:19.5]} 9. exf6 {[%clk 0:04:43.7]} 9... Bxf6 {[%clk 0:04:17.8]}
10. Bg5 {[%clk 0:04:40.9]} 10... h6 {[%clk 0:04:12.8]} 11. Bxf6 {[%clk
0:04:39.8]} 11... Nxf6 {[%clk 0:04:11.8]} 12. Ne5 {[%clk 0:04:38.8]} 12... Qe7
{[%clk 0:04:01.8]} 13. Nxc6 {[%clk 0:04:35.4]} 1-0

[Event "Live Chess"]
[Site "Chess.com"]
[Date "2023.05.21"]
[Round "-"]
[White "OleksiyJr1"]
[Black "Leonid_Starozhilov"]
[Result "0-1"]
[WhiteElo "1005"]
[BlackElo "2633"]
[TimeControl "300"]
[EndTime "4:58:36 PDT"]
[Termination "Leonid_Starozhilov won by resignation"]

1. e4 {[%clk 0:04:47.6]} 1... c6 {[%clk 0:04:57.7]} 2. Nf3 {[%clk 0:04:36.8]}
2... d5 {[%clk 0:04:57.6]} 3. e5 {[%clk 0:04:35.4]} 3... Bg4 {[%clk 0:04:55.7]}
4. d4 {[%clk 0:04:33.9]} 4... e6 {[%clk 0:04:54.3]} 5. h3 {[%clk 0:04:32.2]}
5... Bh5 {[%clk 0:04:52.8]} 6. Be2 {[%clk 0:04:30.9]} 6... c5 {[%clk 0:04:51.6]}
7. c3 {[%clk 0:04:28.8]} 7... Nc6 {[%clk 0:04:50.4]} 8. Nbd2 {[%clk 0:04:24.4]}
8... Qb6 {[%clk 0:04:48.8]} 9. O-O {[%clk 0:04:22.8]} 9... cxd4 {[%clk
0:04:44.6]} 10. Nxd4 {[%clk 0:04:08.7]} 10... Bxe2 {[%clk 0:04:43]} 11. Qxe2
{[%clk 0:04:08.6]} 11... Nh6 {[%clk 0:04:38]} 12. N2f3 {[%clk 0:04:06.1]} 12...
Bc5 {[%clk 0:04:31.3]} 13. Rd1 {[%clk 0:04:01.3]} 13... Bxd4 {[%clk 0:04:29]}
14. Nxd4 {[%clk 0:03:57.9]} 14... Nxd4 {[%clk 0:04:27.6]} 15. cxd4 {[%clk
0:03:56.3]} 15... Nf5 {[%clk 0:04:27.2]} 16. b3 {[%clk 0:03:49.4]} 16... O-O
{[%clk 0:04:18.1]} 17. Be3 {[%clk 0:03:44.9]} 17... Rac8 {[%clk 0:04:15.9]} 18.
Rac1 {[%clk 0:03:42.7]} 18... Rc6 {[%clk 0:04:14.4]} 19. g4 {[%clk 0:03:00.7]}
19... Nxe3 {[%clk 0:04:10.9]} 20. Qxe3 {[%clk 0:02:54.9]} 20... Rfc8 {[%clk
0:04:09.4]} 21. f4 {[%clk 0:02:50.1]} 21... h6 {[%clk 0:04:01.2]} 22. Kf2 {[%clk
0:02:37.7]} 22... Rc2+ {[%clk 0:03:58.7]} 23. Rxc2 {[%clk 0:02:33.8]} 23...
Rxc2+ {[%clk 0:03:56.1]} 24. Rd2 {[%clk 0:02:32.9]} 24... Qc7 {[%clk 0:03:51.2]}
25. Qd3 {[%clk 0:02:28.2]} 25... Rc3 {[%clk 0:03:46.1]} 26. Qe2 {[%clk
0:02:15.8]} 26... Rxh3 {[%clk 0:03:41.3]} 27. Rd3 {[%clk 0:02:14.5]} 27... Rh2+
{[%clk 0:03:39.4]} 0-1

[Event "Live Chess"]
[Site "Chess.com"]
[Date "2023.05.21"]
[Round "-"]
[White "TheKingKeir"]
[Black "CeladonFish"]
[Result "0-1"]
[WhiteElo "1501"]
[BlackElo "1112"]
[TimeControl "300"]
[EndTime "4:58:39 PDT"]
[Termination "CeladonFish won by resignation"]

1. e4 {[%clk 0:04:57.9]} 1... d6 {[%clk 0:04:58.3]} 2. d4 {[%clk 0:04:56.5]}
2... Nf6 {[%clk 0:04:57.6]} 3. Bd3 {[%clk 0:04:54.9]} 3... g6 {[%clk 0:04:56.8]}
4. c4 {[%clk 0:04:53.8]} 4... Bg7 {[%clk 0:04:55.4]} 5. Nc3 {[%clk 0:04:53.3]}
5... O-O {[%clk 0:04:50.5]} 6. Nge2 {[%clk 0:04:52.2]} 6... c5 {[%clk
0:04:46.1]} 7. d5 {[%clk 0:04:50.7]} 7... Nh5 {[%clk 0:04:44.3]} 8. f4 {[%clk
0:04:36.5]} 8... a6 {[%clk 0:04:40.2]} 9. O-O {[%clk 0:04:28.2]} 9... Bd7 {[%clk
0:04:23.3]} 10. f5 {[%clk 0:04:13]} 10... gxf5 {[%clk 0:04:20.4]} 11. exf5
{[%clk 0:04:12.9]} 11... b5 {[%clk 0:04:13.3]} 12. b3 {[%clk 0:04:09.4]} 12...
bxc4 {[%clk 0:04:11.3]} 13. bxc4 {[%clk 0:04:08.2]} 13... e6 {[%clk 0:04:05.9]}
14. fxe6 {[%clk 0:03:49]} 14... fxe6 {[%clk 0:04:03.4]} 15. dxe6 {[%clk
0:03:35.3]} 15... Bxe6 {[%clk 0:04:02]} 16. Qc2 {[%clk 0:03:16.6]} 16... Rxf1+
{[%clk 0:03:55.3]} 17. Kxf1 {[%clk 0:03:16.5]} 17... Qf6+ {[%clk 0:03:51.7]} 18.
Kg1 {[%clk 0:03:10.9]} 18... Bg4 {[%clk 0:03:43.4]} 19. Bb2 {[%clk 0:02:48.7]}
19... Bxe2 {[%clk 0:03:35.5]} 20. Qxe2 {[%clk 0:02:38.4]} 20... Nc6 {[%clk
0:03:12.6]} 21. Qxh5 {[%clk 0:02:33]} 21... Qd4+ {[%clk 0:02:57.6]} 22. Kh1
{[%clk 0:02:26.9]} 22... Qxd3 {[%clk 0:02:55.5]} 23. Rd1 {[%clk 0:02:10.8]}
23... Rf8 {[%clk 0:02:48]} 24. h3 {[%clk 0:01:26.3]} 24... Rf1+ {[%clk
0:02:43.7]} 25. Rxf1 {[%clk 0:01:04.4]} 25... Qxf1+ {[%clk 0:02:42.4]} 26. Kh2
{[%clk 0:01:04.1]} 26... Be5+ {[%clk 0:02:40.2]} 27. g3 {[%clk 0:00:58.7]} 27...
Qf2+ {[%clk 0:02:35]} 28. Kh1 {[%clk 0:00:57.7]} 28... Qxb2 {[%clk 0:02:25.5]}
29. Qe8+ {[%clk 0:00:51]} 29... Kg7 {[%clk 0:02:21.6]} 30. Qxc6 {[%clk 0:00:46]}
30... Qxc3 {[%clk 0:02:19.1]} 31. Qd7+ {[%clk 0:00:43.8]} 31... Kf6 {[%clk
0:02:17.3]} 32. Qxh7 {[%clk 0:00:39.4]} 32... Qe1+ {[%clk 0:02:15.8]} 0-1

[Event "Live Chess"]
[Site "Chess.com"]
[Date "2023.05.21"]
[Round "-"]
[White "JohanKjeldahl"]
[Black "seasidecastle27"]
[Result "1-0"]
[WhiteElo "1882"]
[BlackElo "1845"]
[TimeControl "300"]
[EndTime "4:58:45 PDT"]
[Termination "JohanKjeldahl won by checkmate"]

1. c4 {[%clk 0:04:58]} 1... e5 {[%clk 0:04:58]} 2. Nc3 {[%clk 0:04:56.9]} 2...
d6 {[%clk 0:04:57.1]} 3. e3 {[%clk 0:04:54.1]} 3... Nf6 {[%clk 0:04:52.2]} 4.
Nf3 {[%clk 0:04:52.8]} 4... Be7 {[%clk 0:04:50.2]} 5. Be2 {[%clk 0:04:49.5]}
5... Nc6 {[%clk 0:04:48.3]} 6. O-O {[%clk 0:04:48.5]} 6... O-O {[%clk
0:04:46.9]} 7. a3 {[%clk 0:04:47.7]} 7... a5 {[%clk 0:04:44.5]} 8. d4 {[%clk
0:04:45.2]} 8... exd4 {[%clk 0:04:34.3]} 9. Nxd4 {[%clk 0:04:43.6]} 9... Nxd4
{[%clk 0:04:30]} 10. exd4 {[%clk 0:04:39]} 10... Bf5 {[%clk 0:04:27.6]} 11. Bf3
{[%clk 0:04:34.6]} 11... c6 {[%clk 0:04:25.3]} 12. d5 {[%clk 0:04:30.7]} 12...
cxd5 {[%clk 0:04:14.4]} 13. Nxd5 {[%clk 0:04:28.3]} 13... Rb8 {[%clk 0:03:45.7]}
14. Nxe7+ {[%clk 0:04:25.5]} 14... Qxe7 {[%clk 0:03:43.7]} 15. Bf4 {[%clk
0:04:24]} 15... Rfd8 {[%clk 0:03:36.5]} 16. Re1 {[%clk 0:04:22.5]} 16... Qd7
{[%clk 0:03:28.4]} 17. c5 {[%clk 0:04:15.9]} 17... Rbc8 {[%clk 0:03:07.7]} 18.
cxd6 {[%clk 0:04:13]} 18... Rc4 {[%clk 0:03:00.5]} 19. Bg3 {[%clk 0:04:05.6]}
19... Be4 {[%clk 0:02:45.4]} 20. b3 {[%clk 0:03:52.2]} 20... Bxf3 {[%clk
0:02:22.9]} 21. Qxf3 {[%clk 0:03:50.4]} 21... Rc6 {[%clk 0:02:18.1]} 22. Rad1
{[%clk 0:03:45.6]} 22... Ne8 {[%clk 0:02:14.4]} 23. Re7 {[%clk 0:03:38.1]} 23...
Qc8 {[%clk 0:01:53.3]} 24. Qxf7+ {[%clk 0:03:35.1]} 24... Kh8 {[%clk 0:01:49.6]}
25. Qf8# {[%clk 0:03:34]} 1-0

[Event "Live Chess"]
[Site "Chess.com"]
[Date "2023.05.21"]
[Round "-"]
[White "Mikhail_Golubev"]
[Black "GwaryTek"]
[Result "1-0"]
[WhiteElo "2450"]
[BlackElo "2061"]
[TimeControl "300"]
[EndTime "4:58:51 PDT"]
[Termination "Mikhail_Golubev won on time"]

1. e4 {[%clk 0:04:58.3]} 1... Nf6 {[%clk 0:04:56.1]} 2. Nc3 {[%clk 0:04:54.8]}
2... d5 {[%clk 0:04:54.6]} 3. e5 {[%clk 0:04:54]} 3... Ne4 {[%clk 0:04:53.3]} 4.
Nce2 {[%clk 0:04:52.1]} 4... Nc5 {[%clk 0:04:52.6]} 5. d4 {[%clk 0:04:50.3]}
5... Nca6 {[%clk 0:04:52.1]} 6. f4 {[%clk 0:04:44.2]} 6... Bg4 {[%clk
0:04:50.9]} 7. h3 {[%clk 0:04:42.6]} 7... Bxe2 {[%clk 0:04:48.9]} 8. Bxe2 {[%clk
0:04:41.7]} 8... e6 {[%clk 0:04:48.8]} 9. Nf3 {[%clk 0:04:39.3]} 9... c5 {[%clk
0:04:47.7]} 10. O-O {[%clk 0:04:34.5]} 10... Nc6 {[%clk 0:04:42.2]} 11. c3
{[%clk 0:04:28.7]} 11... Nc7 {[%clk 0:04:28.9]} 12. Be3 {[%clk 0:04:15.5]} 12...
b6 {[%clk 0:04:19.9]} 13. Qa4 {[%clk 0:03:38.3]} 13... Qd7 {[%clk 0:04:16.2]}
14. Rad1 {[%clk 0:03:35.9]} 14... Nxe5 {[%clk 0:04:04.6]} 15. Qxd7+ {[%clk
0:03:28.2]} 15... Nxd7 {[%clk 0:04:04.5]} 16. f5 {[%clk 0:03:27.7]} 16... Bd6
{[%clk 0:03:52.5]} 17. fxe6 {[%clk 0:03:25.4]} 17... fxe6 {[%clk 0:03:52.4]} 18.
c4 {[%clk 0:03:18.1]} 18... O-O {[%clk 0:03:37.3]} 19. dxc5 {[%clk 0:02:43.2]}
19... bxc5 {[%clk 0:03:01.4]} 20. Ng5 {[%clk 0:02:40.3]} 20... d4 {[%clk
0:02:48.6]} 21. Ne4 {[%clk 0:02:14.1]} 21... Be5 {[%clk 0:02:16.5]} 22. Bf2
{[%clk 0:02:08.2]} 22... Rab8 {[%clk 0:01:35.7]} 23. b3 {[%clk 0:02:00.6]} 23...
Bf4 {[%clk 0:01:04.2]} 24. g3 {[%clk 0:01:47.7]} 24... Be5 {[%clk 0:00:56.6]}
25. Kg2 {[%clk 0:01:46.5]} 25... h6 {[%clk 0:00:50.5]} 26. Rfe1 {[%clk
0:01:37.6]} 26... Rf7 {[%clk 0:00:45.9]} 27. Bh5 {[%clk 0:01:35.3]} 27... Re7
{[%clk 0:00:36.7]} 28. Nxc5 {[%clk 0:01:33.7]} 28... Nxc5 {[%clk 0:00:06.1]} 29.
Rxe5 {[%clk 0:01:32.3]} 1-0

[Event "Live Chess"]
[Site "Chess.com"]
[Date "2023.05.21"]
[Round "-"]
[White "davigator"]
[Black "whitedjohn"]
[Result "1-0"]
[WhiteElo "2330"]
[BlackElo "1659"]
[TimeControl "300"]
[EndTime "4:58:51 PDT"]
[Termination "davigator won by resignation"]

1. e4 {[%clk 0:04:57.9]} 1... Nf6 {[%clk 0:04:59.4]} 2. e5 {[%clk 0:04:55.1]}
2... Nd5 {[%clk 0:04:59]} 3. d4 {[%clk 0:04:53.9]} 3... d6 {[%clk 0:04:58.6]} 4.
c4 {[%clk 0:04:53.4]} 4... Nb6 {[%clk 0:04:57.3]} 5. f4 {[%clk 0:04:53]} 5...
dxe5 {[%clk 0:04:56]} 6. fxe5 {[%clk 0:04:52.7]} 6... Nc6 {[%clk 0:04:54.9]} 7.
Be3 {[%clk 0:04:51.9]} 7... Bf5 {[%clk 0:04:54.2]} 8. Nc3 {[%clk 0:04:51.1]}
8... e6 {[%clk 0:04:53.7]} 9. Rc1 {[%clk 0:04:46.9]} 9... Be7 {[%clk 0:04:44.5]}
10. Nf3 {[%clk 0:04:44.7]} 10... O-O {[%clk 0:04:36.9]} 11. Be2 {[%clk
0:04:43.4]} 11... f6 {[%clk 0:04:34.8]} 12. exf6 {[%clk 0:04:41.6]} 12... Bxf6
{[%clk 0:04:33.7]} 13. O-O {[%clk 0:04:39.6]} 13... Qd7 {[%clk 0:04:12.5]} 14.
c5 {[%clk 0:04:34.9]} 14... Nd5 {[%clk 0:04:09.2]} 15. Nxd5 {[%clk 0:04:34]}
15... exd5 {[%clk 0:04:03.7]} 16. Qd2 {[%clk 0:04:31.7]} 16... Bg4 {[%clk
0:03:58.6]} 17. b4 {[%clk 0:04:29.6]} 17... a6 {[%clk 0:03:48.2]} 18. a4 {[%clk
0:04:27.2]} 18... Ne7 {[%clk 0:03:34.7]} 19. b5 {[%clk 0:04:25.8]} 19... axb5
{[%clk 0:03:31.2]} 20. axb5 {[%clk 0:04:23.8]} 20... c6 {[%clk 0:03:30.2]} 21.
b6 {[%clk 0:04:20.5]} 21... Nf5 {[%clk 0:03:16.5]} 22. Bf2 {[%clk 0:04:19.3]}
22... Rfe8 {[%clk 0:03:09.3]} 23. Ra1 {[%clk 0:04:16.4]} 23... Qe6 {[%clk
0:02:55.6]} 24. Rxa8 {[%clk 0:04:09.8]} 24... Rxa8 {[%clk 0:02:54]} 25. Bd1
{[%clk 0:04:05.6]} 25... Ra3 {[%clk 0:01:47.6]} 26. Re1 {[%clk 0:04:02.9]} 26...
Qd7 {[%clk 0:01:43.9]} 27. Qf4 {[%clk 0:03:59.2]} 27... Bxf3 {[%clk 0:01:41.8]}
28. Bxf3 {[%clk 0:03:57.1]} 28... Ra4 {[%clk 0:01:21.2]} 29. Bg4 {[%clk
0:03:55.9]} 29... g6 {[%clk 0:01:17.9]} 30. Bxf5 {[%clk 0:03:55]} 30... Qxf5
{[%clk 0:01:16.3]} 31. Qb8+ {[%clk 0:03:52.9]} 31... Kg7 {[%clk 0:01:12.4]} 32.
Qxb7+ {[%clk 0:03:52.1]} 32... Kh6 {[%clk 0:01:11]} 33. Be3+ {[%clk 0:03:45.7]}
33... Bg5 {[%clk 0:01:06.2]} 34. Bxg5+ {[%clk 0:03:44]} 34... Kxg5 {[%clk
0:01:05]} 35. Qxh7 {[%clk 0:03:35.6]} 1-0